Cogmind - Beta 13 @@@ ROGUE MODE // 2024.07.21 @ 21:37:53 Player: ZergFTW Result: Destroyed by S-10 Pest with Light Assault Rifle Performance ------------- Evolutions (0) 0 Regions Visited (1) 200 Robots Destroyed (23) 115 Value Destroyed (384) 384 Prototype IDs (0) 0 Alien Tech Used (0) 0 Bonus (0) 0 TOTAL SCORE: 699 Bonus ------- None Cogmind --------- Core Integrity 0/250 Matter 300/300 Energy 100/100 System Corruption 0% Temperature Cool (0) Movement Core (1400) Ox27 Location -10/Materials Parts ------- > --- POWER (1) -------- (None) > --- PROPULSION (2) --- (None) > --- UTILITY (2) ------ Heat Sink Huge Storage Unit > --- WEAPON (2) ------- Beam Cannon > --- INVENTORY (25) --- Ion Engine Heat Sink Small Storage Unit Medium Matter Pod (100) Structural Scanner Visual Processing Unit Sensor Array Light Assault Rifle Peak State ------------ > --- POWER ------------ Ion Engine > --- PROPULSION ------- Light Treads Light Treads > --- UTILITY ---------- Small Storage Unit Seismic Detector > --- WEAPON ----------- Medium Laser Medium Laser > --- INVENTORY -------- Ion Engine Light Assault Rifle [Rating: 7] Favorites ----------- Power Ion Engine Engine Ion Engine Propulsion Light Treads Treads Light Treads Utility Heat Sink Device Heat Sink Storage Huge Storage Unit Weapon Beam Cannon Energy Gun Medium Laser Energy Cannon Beam Cannon Build | -11 -10 ------- Run | Yrd Mat Slots Evolved . | . . Power . | . . Propulsion . | . . Utility . | . . Weapon . | . . Parts Attached 12 | 7 5 Power 1 | 1 . Engine 1 | 1 . Core . | . . Reactor . | . . Propulsion 2 | 2 . Treads 2 | 2 . Leg . | . . Wheel . | . . Hover . | . . Flight . | . . Utility 5 | 2 3 Device 3 | 1 2 Storage 2 | 1 1 Processor . | . . Hackware . | . . Protection . | . . Artifact . | . . Weapon 4 | 2 2 Energy Gun 2 | 2 . Energy Cannon 2 | . 2 Ballistic Gun . | . . Ballistic Cannon . | . . Launcher . | . . Special Weapon . | . . Impact Weapon . | . . Slashing Weapon . | . . Piercing Weapon . | . . Special Melee Weapon . | . . Unidentified Prototypes . | . . Parts Lost 4 | . 4 Power 1 | . 1 Propulsion 2 | . 2 Utility . | . . Weapon 1 | . 1 Highest Loss Streak 4 | . 4 To Critical Strikes . | . . Average Slot Usage (%) 98 | . 98 Engine 13 | . 13 Treads 27 | . 27 Device 14 | . 14 Storage 14 | . 14 Energy Gun 9 | . 9 Energy Cannon 18 | . 18 Naked Turns . | . . Heaviest Build 92 | 15 92 Greatest Support 40 | 40 40 Greatest Overweight (x) 28 | . 28 Average Overweight (x) . | . . Largest Inventory Capacity 25 | 8 25 Average Capacity 16 | 7 17 Most Carried 8 | 2 8 Average Carried 5 | 1 5 Final Capacity 25 | 8 25 Final Carried 8 | 2 8 Class Distribution -------------------- 100% | Mutant Dominant Class ---------------- Mutant | -10/Materials Resources | -11 -10 ----------- Run | Yrd Mat Matter Collected 420 | 270 150 Remotely . | . . Salvage Created 680 | 137 543 Parts 47 | 9 38 Haulers Intercepted 1 | . 1 Recyclers Shooed . | . . Parts Field Recycled . | . . Retrieved Matter . | . . Parts Self-Destructed . | . . Prevented . | . . Kills | -11 -10 ------- Run | Yrd Mat Combat Hostiles Destroyed 14 | . 14 Guns 8 | . 8 Cannons 6 | . 6 Classes Destroyed 8 | 2 6 Worker 2 | . 2 Builder 1 | . 1 Tunneler 3 | 2 1 Hauler 1 | . 1 Recycler 1 | 1 . Watcher 1 | . 1 Swarmer 6 | . 6 Grunt 8 | . 8 Best Kill Streak 5 | 3 5 Combat Bots Only 4 | . 4 Max Kills in Single Turn 2 | 1 2 Gunslinging . | . . Exploded . | . . Melee . | . . Uniques/NPCs Destroyed . | . . Combat | -11 -10 -------- Run | Yrd Mat Hostile Shots Fired 148 | . 148 Missed 41 | . 41 Damage Taken 943 | . 943 Core 251 | . 251 Absorbed by Shields . | . . Core Remaining (%) 100 | 100 . Volleys Fired 59 | 7 52 Largest 2 | 2 2 Hottest 120 | 100 120 Shots Fired 118 | 14 104 Gun 70 | 14 56 Cannon 48 | . 48 Launcher . | . . Special . | . . Kinetic . | . . Thermal 118 | 14 104 Explosive . | . . Electromagnetic . | . . Robot Hit Streak 4 | 3 4 Robot Miss Streak 5 | 2 5 Penetration Max . | . . Secondary Targets . | . . Shots Hit Robots 53 | 7 46 Core Hits 26 | 4 22 Critical Kills . | . . Critical Parts Destroyed . | . . Critical Strikes 6 | 2 4 Burn 6 | 2 4 Melee Attacks . | . . Impact . | . . Slashing . | . . Piercing . | . . Sneak Attacks . | . . Combat Hostiles . | . . Follow-up Attacks . | . . Damage Inflicted 839 | 86 753 Guns 436 | 86 350 Cannons 403 | . 403 Explosions . | . . Melee . | . . Ramming . | . . Kinetic . | . . Thermal 839 | 86 753 Explosive . | . . Electromagnetic . | . . Impact . | . . Slashing . | . . Piercing . | . . Highest Corruption . | . . Average Corruption . | . . Corruption Purged . | . . Corruption Blocked . | . . Overload Shots . | . . Overflow Damage . | . . Projectiles . | . . Explosions . | . . Melee . | . . Knockbacks . | . . Impact . | . . Kinetic . | . . Secondary . | . . Self-Inflicted Damage . | . . Shots . | . . Rammed . | . . Targets Rammed . | . . Kicked . | . . Crushed . | . . Highest Temperature 515 | 117 515 Average Temperature 127 | 42 140 Received Heat Transfer 144 | . 144 Effects 4 | . 4 Shutdowns 1 | . 1 Energy Bleed 2 | . 2 Damage (minor) 1 | . 1 Siege Activations . | . . Robots Corrupted . | . . Combat Hostiles . | . . Parts Fried . | . . Impact Corruptions . | . . Robots Melted . | . . Combat Hostiles . | . . Parts Melted 6 | . 6 Heat Transferred 2590 | 407 2183 Parts Sabotaged . | . . Parts Stolen . | . . Parts Stripped . | . . Power Chain Reactions . | . . Alert | -11 -10 ------- Run | Yrd Mat Peak Influence 276 | 15 276 Initial 9 | . 9 Average 100 | 4 112 Maximum Alert Level 1 | . 1 Low Security (%) 87 | 100 85 Level 1 12 | . 14 Level 2 . | . . Level 3 . | . . Level 4 . | . . Level 5 . | . . High Security . | . . Max Security . | . . Squads Dispatched 3 | . 3 Investigation 2 | . 2 Extermination . | . . Reinforcement 1 | . 1 Assault . | . . Garrison . | . . Intercept . | . . Searches Triggered . | . . Construction Impeded . | . . Haulers Reinforced . | . . Active Scanning Responses . | . . Cargo Convoy Interrupts . | . . Stealth | -11 -10 --------- Run | Yrd Mat Distress Signals 1 | . 1 Communications Jammed . | . . Distress Signals . | . . Times Spotted 24 | . 24 Peak Tracking Total 5 | . 5 Tactical Retreats 4 | . 4 Traps | -11 -10 ------- Run | Yrd Mat Traps Triggered 2 | . 2 Indirectly . | . . Trap Hack Attempts . | . . Triggered . | . . Disarmed . | . . Reprogrammed . | . . Reused . | . . Traps Extracted . | . . Installed . | . . Triggered . | . . Machines | -11 -10 ---------- Run | Yrd Mat Machines Disabled . | . . Max in Single Turn . | . . Machines Repaired . | . . Machines Dismantled . | . . Machines Sabotaged . | . . Overloaded Fab Kills . | . . Hacking | -11 -10 --------- Run | Yrd Mat Machines Accessed 3 | . 3 Terminals 2 | . 2 Fabricators . | . . Repair Stations . | . . Recycling Units 1 | . 1 Scanalyzers . | . . Garrison Access . | . . Total Hacks 8 | . 8 Successful 5 | . 5 Failed 3 | . 3 Catastrophic . | . . Database Lockouts . | . . Manual 7 | . 7 Terminals 6 | . 6 Fabricators . | . . Repair Stations . | . . Recycling Units 2 | . 2 Scanalyzers . | . . Garrison Access . | . . Terminal Hacks 2 | . 2 Robot Analysis 1 | . 1 Branch Access Points 1 | . 1 Fabricator Hacks . | . . Repair Station Hacks . | . . Recycling Unit Hacks 1 | . 1 Report Inventory 1 | . 1 Scanalyzer . | . . Garrison Access Hacks . | . . Unauthorized Hacks 2 | . 2 Terminals 2 | . 2 Botnet 2 | . 2 Fabricators . | . . Repair Stations . | . . Recycling Units . | . . Scanalyzers . | . . Garrison Access . | . . Data Cores Recovered . | . . Used . | . . Hacking Detections 2 | . 2 Full Trace Events 1 | . 1 Feedback Events . | . . Feedback Blocked . | . . Robot Schematics Acquired . | . . Robots Built . | . . Authchips . | . . Time . | . . Total Robot Build Rating . | . . Part Schematics Acquired . | . . Parts Built . | . . Authchips . | . . Time . | . . Total Part Build Rating . | . . Parts Repaired . | . . Time . | . . Parts Recycled . | . . Recycled Matter . | . . Retrieved Matter . | . . Retrieved Components . | . . Parts Scanalyzed . | . . Part Schematics Acquired . | . . Parts Damaged . | . . Bothacking | -11 -10 ------------ Run | Yrd Mat Used RIF Installer . | . . Robots Hacked . | . . Non-combat . | . . Combat . | . . Robot Hacks Applied . | . . Relay Couplers Released . | . . Fabnet Peak Effective % . | . . Robots Rewired . | . . Allies Hacked . | . . Hacks Repelled . | . . Allies | -11 -10 -------- Run | Yrd Mat Total Allies . | . . Largest Group . | . . Highest-Rated Group . | . . Highest-Rated Ally . | . . Total Orders . | . . Ally Attacks . | . . Total Damage . | . . Kills . | . . Allies Corrupted . | . . Allies Melted . | . . Intel | -11 -10 ------- Run | Yrd Mat Robot Analysis Total 1 | . 1 Derelict Logs Recovered . | . . Drone Launches . | . . Drone Recoveries . | . . Exploration | -11 -10 ------------- Run | Yrd Mat Turns Passed 1148 | 121 1027 Spaces Moved 411 | 59 352 Core 8 | 5 3 Treads 403 | 54 349 Legs . | . . Wheels . | . . Hover . | . . Flight . | . . Fastest Speed 50 | 50 160 Average Speed 219 | 150 231 Slowest Speed 1450 | 160 1450 Overloaded Moves . | . . Propulsion Burnouts . | . . Robots Hopped . | . . Cave-ins Triggered . | . . Exploration Rate (%) 31 | 4 58 Regions Visited 1 Branch Regions . Pre-discovered Areas . | . . Known Exits Taken . | . . Unknown Exits Taken 1 | 1 . Scrap Searched . | . . Spaces Dug . | . . Terrain Destroyed . | . . Melee . | . . Projectile . | . . AOE . | . . Terrain Rammed . | . . Walls Destroyed . | . . Machines Disabled . | . . Actions | -11 -10 --------- Run | Yrd Mat Total 544 | 74 470 Wait 53 | . 53 Move 410 | 58 352 Hop . | . . Pick Up 7 | 2 5 Fast Attach 9 | 7 2 Attach . | . . Detach . | . . Swap 3 | . 3 Drop 3 | . 3 Fire 59 | 7 52 Melee . | . . Ram . | . . Kick . | . . Crush . | . . Escape Stasis . | . . Rewire . | . . Trap . | . . Miscellaneous . | . . Route ------- -11/Scrapyard -10/Materials (discovered 3 exits: [*Mat x2] / Min) History --------- Turn | Location | Event 10 | -11/Scrapyard | Discovered new exit (range 15) 122 | -11/Scrapyard | Entered Materials 300 | -10/Materials | Build established: Mutant 542 | -10/Materials | Discovered new exit (range 16) 901 | -10/Materials | Discovered new exit (range 13) 1014 | -10/Materials | Identified exit to Mines 1120 | -10/Materials | Core integrity fell below 50% 1136 | -10/Materials | Core integrity fell below 20% 1149 | -10/Materials | Destroyed by S-10 Pest with Light Assault Rifle Last Messages --------------- W-series watchers are equipped with a wide variety of sensors to excel at surveillance. However, their heavy reliance on highly-exposed advanced electronic systems means they are extremely susceptible to electromagnetic attacks. On detecting intruders, a W-16 Scout will alert all nearby combat units and continue to provide position updates as long as the hostile is visible. 01065_ ALERT: Suspicious activity at Terminal M008. Dispatching Investigation squad. 01078_ K-01 Serf destroyed. 01081_ G-34 Mercenary destroyed. 01090_ R-06 Scavenger collects Aluminum Leg. 01093_ G-34 Mercenary destroyed. 01095_ R-06 Scavenger collects Heat Sink. 01110_ Lgt. Treads destroyed. 01113_ Ion Engine destroyed. 01114_ G-34 Mercenary destroyed. 01129_ K-01 Serf collects debris. 01138_ Beam Cannon destroyed. 01140_ K-01 Serf destroyed. 01141_ K-01 Serf collects debris. Map ----- +----------------------------------------------------+ | """"" # # ! T # + #####+####???????????? | | + !%# # # +???????????? | | """"" # *# """ # # ###???????????? | | """"" # # """ # # #?????????????? | | """"" # # """ ######## ########?????????????? | | ==%% / # #??????# #????????????????????? | | ###+#### + """ #??????# #????????????????????? | | ??#=#??# #??"" #??????# ???????????????? | | ??# #??# #???" #?????? ??????????? | | ??#%#### #??? ?????? ?????????? | | #?# ^% #??? ? ? """" """ """"?????????? | | #?# ^ #??? ? !/ """" """ ""???????????? | | ### %"" #???##? /! """" """ ""???????????? | | # """ #?????? ????????????????? | | # """ #?????# ????????????????? | | + """ #?????# ?######???????????????? | | # #?????# ??????????????????????????? | | # #?????# ??????????????????????????? | | ## #######?????# ##########??????????????????? | | ## #???????????# ## #??????????????????? | | ## #???????????#* *## T #??????????????????? | | ?# #???????????# %!## #??????????????????? | | ## #?########### ## !#??????????????????? | | # #?# ## ## #??????????????????? | | # #?# ! """ ## ## #??????????????????? | | # #?# """ # ###@################???????? | | # #?# """ # ??????? | | # #?#| !% + sssk %= ??????? | | # #?# """ # k % = ??????? | | # #?# """ # t # %####### #####????????? | | + #?# """ ### ### *# #?? #????????????? | | # #?# #?#%#?# # """ #????????????????? | | ## ####+#######?#!#?# + """ #????????????????? | | # #?# #???????# ### # """ #????????????????? | | # #?# #???????# ##T # #????????????????? | | # #?# #?????###+### *#?#####????????????????? | | # #?# #?????#* # %###########????????????? | | # #?# ####### # # #????????????? | | ## ##?# # # # # #????????????? | | # #??# # # """ # # #????????????? | | #??# # " # """ #=%%# #????????????? | | # #??# # """# """ + + """ """ #????????????? | | ## #### # """# # # """ """ #????????????? | | ?# # """# """ # # """ """??????????????? | | ?# + "" # """ # # ??????????????? | | ## # """# """ # #########??????????????? | | ## ###### ""# # #??????????????????????? | | ## ##???# """# # #??????????????????????? | | # #???# " ####### #??????????????????????? | | # #???# #?????# #??????????????????????? | +----------------------------------------------------+ Best States ------------- Heat Dissipation 35 Energy Generation 10 Energy Capacity 250 Matter Stores 300 Matter Capacity 300 Sight Range 16 Terrain Scan Density 10 Evasion (%) 40 Recoil Reduction 2 Item Schematics ----------------- None Robot Schematics ------------------ None Fabricated ------------ Nothing Alien Tech Used ----------------- None Achievements -------------- None Challenges ------------ None Game ------ Seed ReactionNodeCycler Manual? 0 Play Time 00:09:35 Cumulative 99.1 hours Start 2024.07.21 @ 21:30:06 End 2024.07.21 @ 21:37:53 Sessions 1 Manual Loads 0 Difficulty Rogue Special Mode None Game No. 58 Rogue 57 Adventurer 1 Explorer 0 Win Type - Total 0 Types 0/0/0/0/0/0/0/0/0 Lore% 43 Gallery% 45 Achievement% 42 Wizard Run 0 Options --------- Layout 1 ASCII 0 Keyboard 0 Movement Mouse Keybinds 0 Fullscreen 1 Font 24/Proggy Map View 76x35 Zoom Use 0% Tactical HUD 1 Map Filters NONE Filters NONE Steam 1 RUN: 8f7d774c-7e8d-4b21-8bf3-6fb5e2fcabc2